bitfinex/quotes_SOLUSD_20260302
["timestamp","ask_amount","ask_price","bid_price","bid_amount"]
[1772474930249,0.12559428,87.358,87.314,4.43656854]
[1772474931349,0.12559428,87.348,87.313,11.45304822]
[1772474931548,0.12559428,87.348,87.308,11.45360666]
[1772474931753,0.12559428,87.348,87.304,15.89079207]
[1772474931948,0.12559428,87.339,87.304,15.89079207]
[1772474932154,11.44990095,87.337,87.297,4.43656854]
[1772474932464,0.12559428,87.328,87.287,4.43656854]
[1772474932667,0.28432314,87.319,87.287,4.43656854]
[1772474934654,0.28432314,87.317,87.288,4.43656854]
[1772474935156,0.28432314,87.317,87.289,4.43656854]
[1772474935362,0.28432314,87.317,87.288,11.45632847]
[1772474935674,0.40991742,87.317,87.288,11.45632847]
[1772474936473,0.12559428,87.317,87.289,4.43656854]
[1772474936775,11.4485901,87.347,87.291,4.49936568]
[1772474937284,11.44701747,87.359,87.296,4.49936568]
[1772474937455,0.28432314,87.358,87.304,4.49936568]
[1772474937668,11.44701747,87.359,87.304,4.49936568]
[1772474937887,28.61149636,87.378,87.309,4.49936568]
[1772474938058,0.28432314,87.377,87.312,4.49936568]
[1772474938394,0.28432314,87.369,87.313,4.49936568]
[1772474938973,11.44570728,87.369,87.315,4.49936568]
[1772474939874,0.28432314,87.368,87.315,4.49936568]
[1772474941672,0.1,87.38,87.318,4.49936568]
[1772474941874,11.44472032,87.377,87.32,4.49936568]
[1772474942372,11.44472032,87.377,87.324,4.49936568]
[1772474942865,0.1,87.38,87.329,4.49936568]
[1772474943268,0.28432314,87.379,87.329,4.49936568]
[1772474944085,0.28432314,87.369,87.315,4.49936568]
[1772474944691,0.28432314,87.359,87.315,4.49936568]
[1772474944862,0.28432314,87.357,87.316,11.45265472]
[1772474945063,0.28432314,87.357,87.317,4.49936568]
[1772474945270,0.28432314,87.357,87.304,4.49936568]
[1772474945461,0.28432314,87.349,87.305,4.49936568]
[1772474945667,131.64220791,87.358,87.283,4.49936568]
[1772474945870,0.28432314,87.329,87.283,4.49936568]
[1772474946466,0.28432314,87.339,87.283,4.49936568]
[1772474946666,0.28432314,87.329,87.283,4.49936568]
[1772474946975,0.28432314,87.327,87.285,4.49936568]
[1772474947863,40.0622682,87.364,87.287,3.69383402]
[1772474948070,0.28432314,87.359,87.288,4.49936568]
[1772474948265,40.0622682,87.364,87.288,4.49936568]
[1772474948570,0.28432314,87.349,87.288,4.49936568]
[1772474949095,0.28432314,87.347,87.293,4.49936568]
[1772474950173,40.06960662,87.348,87.293,4.49936568]
[1772474950384,0.28432314,87.347,87.293,4.49936568]
[1772474951388,0.28432314,87.339,87.295,4.49936568]
[1772474952179,11.44872117,87.346,87.295,4.49936568]
[1772474952693,8.50408959,87.39,87.306,4.49936568]
[1772474952872,11.54427547,87.38,87.314,4.49936568]
[1772474953186,11.54427547,87.38,87.323,4.49936568]
[1772474953491,0.1,87.38,87.329,4.49936568]
[1772474955387,0.1,87.38,87.342,4.49936568]
[1772474955905,0.28432314,87.369,87.323,11.45173665]
[1772474956193,0.28432314,87.369,87.324,4.49936568]
[1772474956693,0.28432314,87.379,87.324,4.49936568]
[1772474957501,0.28432314,87.377,87.326,4.49936568]
[1772474957676,0.28432314,87.369,87.326,4.49936568]
[1772474958095,0.28432314,87.369,87.32,11.45203113]
[1772474958302,97.27849114,87.378,87.294,4.49936568]
[1772474958303,0.28432314,87.359,87.294,4.49936568]
[1772474958593,0.28432314,87.359,87.295,4.49936568]
[1772474958771,0.28432314,87.349,87.298,4.49936568]
[1772474959213,0.28432314,87.377,87.303,4.49936568]
[1772474959678,40.05676615,87.376,87.308,4.49936568]
[1772474959989,40.05676615,87.376,87.312,4.49936568]
[1772474961198,0.28432314,87.359,87.312,4.49936568]
[1772474961899,0.28432314,87.357,87.313,15.9524139]
[1772474962099,0.28432314,87.357,87.314,4.49936568]
[1772474963487,11.73029244,87.367,87.314,4.49936568]
[1772474963682,11.4459693,87.367,87.314,4.49936568]
[1772474963878,0.28432314,87.378,87.322,4.49936568]
[1772474964079,40.05552442,87.379,87.322,4.49936568]
[1772474964279,0.1,87.38,87.324,4.49936568]
[1772474964475,0.1,87.38,87.326,4.78368882]
[1772474964698,11.44439739,87.379,87.328,4.49936568]
[1772474965180,0.1,87.38,87.334,4.49936568]
[1772474965502,0.1,87.38,87.325,1.14514743]
[1772474965503,0.1,87.39,87.344,4.44936568]
[1772474965883,0.1,87.39,87.349,4.44936568]
[1772474966798,0.1,87.39,87.35,4.44936568]
[1772474967000,0.1,87.39,87.353,4.44936568]
[1772474968677,0.1,87.39,87.349,3.69383402]
[1772474968678,0.1,87.39,87.358,4.44936568]
[1772474969094,0.1,87.4,87.358,4.44936568]
[1772474970784,0.1,87.4,87.363,4.44936568]
[1772474971100,11.54164759,87.4,87.363,4.44936568]
[1772474972112,0.28432314,87.399,87.363,4.44936568]
[1772474972907,0.10025594,87.398,87.363,4.44936568]
[1772474973081,0.28432314,87.397,87.365,4.44936568]
[1772474973785,0.1,87.4,87.365,4.44936568]
[1772474974305,11.44177851,87.399,87.365,4.44936568]
[1772474974503,11.54165644,87.4,87.365,4.44936568]
[1772474974693,0.38457908,87.399,87.365,4.44936568]
[1772474975213,0.10025594,87.396,87.355,4.44936568]
[1772474975510,0.28432314,87.389,87.355,4.44936568]
[1772474975688,8.39159629,87.38,87.344,4.44936568]
[1772474975885,0.10025594,87.376,87.323,4.44936568]
[1772474977313,0.10025594,87.366,87.323,4.44936568]
[1772474977490,0.10025594,87.366,87.31,3.69383402]
[1772474977491,0.10025594,87.366,87.325,4.44936568]
[1772474978503,40.06043402,87.368,87.325,4.44936568]
[1772474979296,0.10025594,87.374,87.327,4.44936568]
[1772474980308,0.10025594,87.368,87.327,4.44936568]
[1772474981510,0.28432314,87.359,87.327,4.44936568]
[1772474981810,0.28432314,87.339,87.301,4.44936568]
[1772474981996,0.10025594,87.338,87.301,4.44936568]
[1772474982393,0.28432314,87.329,87.301,4.44936568]
[1772474982598,0.28432314,87.329,87.292,4.44936568]
[1772474983306,188.85633182,87.368,87.292,4.44936568]
[1772474983307,40.17536815,87.336,87.292,15.90504577]
[1772474983509,0.38457908,87.319,87.283,4.44936568]
[1772474983709,0.10025594,87.318,87.283,4.44936568]
[1772474984814,0.28432314,87.329,87.283,4.44936568]
[1772474985498,0.28432314,87.327,87.285,4.44936568]
[1772474986710,0.38457908,87.319,87.285,4.44936568]
[1772474987013,0.10025594,87.318,87.278,11.45754756]
[1772474987189,0.10025594,87.318,87.276,4.44936568]
[1772474987390,0.10025594,87.316,87.276,4.44936568]
[1772474989613,45.78109846,87.373,87.277,11.45777237]
[1772474989614,11.44963876,87.339,87.277,11.45777237]
[1772474989912,0.10025594,87.338,87.279,3.69383402]
[1772474990105,0.10025594,87.338,87.28,4.44936568]
[1772474990306,0.38457908,87.338,87.28,4.44936568]
[1772474990895,0.24241751,87.338,87.28,4.44936568]
[1772474991092,0.28432314,87.337,87.28,4.44936568]
[1772474991301,0.10025594,87.328,87.28,4.44936568]
[1772474991500,0.10025594,87.297,87.245,11.46197489]
[1772474991713,0.38457908,87.297,87.246,4.44936568]
[1772474992019,0.38457908,87.297,87.249,4.44936568]
[1772474993222,0.10025594,87.296,87.249,4.44936568]
[1772474993605,45.809471,87.319,87.249,4.44936568]
[1772474993606,0.38457908,87.287,87.249,4.44936568]
[1772474994106,11.45134324,87.326,87.251,4.44936568]
[1772474994310,11.45134324,87.326,87.25,160.74277584]
[1772474994311,11.45134324,87.326,87.264,4.44936568]
[1772474994521,11.45134324,87.326,87.272,4.44936568]
[1772474994819,40.07970134,87.326,87.272,4.44936568]
[1772474996022,0.28432314,87.329,87.274,4.44936568]
[1772474997408,0.28432314,87.331,87.277,4.44936568]
[1772474998020,11.45081873,87.33,87.282,4.44936568]
[1772474999233,0.10025594,87.338,87.284,4.44936568]
[1772474999912,0.10025594,87.328,87.284,4.44936568]
[1772475000633,0.28432314,87.329,87.284,4.44936568]
[1772475000819,0.28432314,87.339,87.284,4.44936568]
[1772475001212,0.28432314,87.337,87.286,4.44936568]
[1772475001407,0.28432314,87.337,87.285,40.0985278]
[1772475001408,11.44872117,87.346,87.291,4.44936568]
[1772475001610,0.10025594,87.358,87.296,4.44936568]
[1772475001804,0.10025594,87.355,87.296,4.44936568]
[1772475002030,0.10025594,87.338,87.296,4.44936568]
[1772475002531,0.10025594,87.328,87.285,4.44936568]
[1772475003113,0.28432314,87.327,87.286,4.44936568]
[1772475003523,11.45108098,87.328,87.286,4.44936568]
[1772475003730,40.07878343,87.328,87.286,4.44936568]
[1772475005336,11.7339619,87.339,87.288,4.44936568]
[1772475005718,11.7339619,87.339,87.291,4.44936568]
[1772475005719,11.44963876,87.339,87.291,4.44936568]
[1772475006516,11.44963876,87.339,87.292,4.44936568]
[1772475006721,40.07373566,87.339,87.292,4.44936568]
[1772475007332,0.28432314,87.339,87.294,4.44936568]
[1772475007926,0.10025594,87.338,87.294,4.44936568]
[1772475008441,40.06914789,87.349,87.294,4.44936568]
[1772475008442,0.10025594,87.347,87.294,4.44936568]
[1772475008646,11.44701747,87.359,87.297,4.44936568]
[1772475008937,0.28432314,87.358,87.299,4.44936568]
[1772475009143,40.06456116,87.359,87.304,4.44936568]
[1772475009335,8.39159629,87.36,87.309,4.44936568]
[1772475009640,0.28432314,87.359,87.309,4.44936568]
[1772475010637,0.10025594,87.358,87.309,4.44936568]
[1772475011420,11.44714851,87.358,87.314,4.44936568]
[1772475012332,0.10025594,87.356,87.314,4.44936568]
[1772475012516,0.28432314,87.357,87.314,4.44936568]
[1772475013530,11.44741059,87.356,87.316,4.44936568]
[1772475013740,11.44741059,87.356,87.318,4.44936568]
[1772475014430,0.10025594,87.355,87.318,4.44936568]
[1772475014935,0.10025594,87.339,87.28,4.44936568]
[1772475015141,8.39159629,87.34,87.282,4.44936568]
[1772475015434,8.39159629,87.34,87.29,4.44936568]
[1772475015618,8.39159629,87.34,87.292,4.44936568]
[1772475015619,0.10025594,87.338,87.292,4.44936568]
[1772475016020,0.10025594,87.329,87.287,4.44936568]
[1772475016828,0.24241751,87.329,87.287,4.44936568]
[1772475017234,0.14216157,87.329,87.287,4.44936568]
[1772475017439,0.28432314,87.338,87.287,4.44936568]
[1772475018339,0.38457908,87.336,87.289,4.44936568]
[1772475018642,40.07465334,87.337,87.289,4.44936568]
[1772475018643,0.10025594,87.328,87.289,4.44936568]
[1772475019924,4.31932089,87.309,87.267,11.4589564]
[1772475020118,4.60364403,87.299,87.255,11.46066128]
[1772475020338,4.31932089,87.287,87.231,11.46381446]
[1772475020646,4.31932089,87.287,87.234,3.69383402]
[1772475021323,4.31932089,87.287,87.232,0.28432314]
[1772475021621,4.31932089,87.287,87.234,3.69383402]
[1772475021821,11.45632847,87.288,87.235,4.41181971]
[1772475022434,4.31932089,87.294,87.24,4.41181971]
[1772475023338,4.31932089,87.294,87.239,3.69383402]
[1772475023339,11.45265472,87.316,87.247,3.69383402]
[1772475023519,40.08429153,87.316,87.252,4.69614285]
[1772475023722,40.08429153,87.316,87.26,4.41181971]
[1772475024121,4.60364403,87.309,87.26,4.41181971]
[1772475024340,4.31932089,87.289,87.251,4.41181971]
[1772475024543,11.45632847,87.288,87.253,4.41181971]
[1772475024838,4.60364403,87.287,87.236,4.41181971]
[1772475026241,45.8086969,87.32,87.236,4.41181971]
[1772475026242,4.31932089,87.355,87.25,4.41181971]
[1772475026538,45.77959434,87.376,87.277,4.41181971]
[1772475026539,4.31932089,87.329,87.277,4.41181971]
[1772475026743,4.31932089,87.327,87.277,4.41181971]
[1772475027547,4.31932089,87.319,87.277,4.41181971]
[1772475028434,97.32304378,87.338,87.277,15.86954427]
[1772475028435,8.40386389,87.31,87.277,15.86954427]
[1772475028825,4.31932089,87.315,87.277,15.86954427]
[1772475029027,4.31932089,87.315,87.278,4.41181971]
[1772475030827,11.45094985,87.329,87.283,4.41181971]
[1772475031043,0.28432314,87.328,87.283,4.41181971]
[1772475031238,11.45094985,87.329,87.283,4.41181971]
[1772475032440,44.39039883,87.345,87.285,4.41181971]
[1772475032829,4.31932089,87.344,87.29,4.41181971]
[1772475035133,11.44911441,87.343,87.291,40.0957716]
[1772475035335,11.44911441,87.343,87.292,4.41181971]
[1772475035648,103.00346129,87.376,87.291,40.0957716]
[1772475035649,0.28432314,87.358,87.294,4.41181971]
[1772475035825,0.14216157,87.358,87.297,4.41181971]
[1772475036245,12.72318478,87.37,87.305,4.41181971]
[1772475036445,0.28432314,87.369,87.305,4.41181971]
[1772475037251,0.28432314,87.367,87.31,4.41181971]
[1772475037451,4.31932089,87.366,87.31,4.41181971]
[1772475037942,4.31932089,87.359,87.31,4.41181971]
[1772475038145,4.31932089,87.357,87.31,4.41181971]
[1772475039241,11.44976985,87.338,87.311,11.45331057]
[1772475039437,15.76909074,87.338,87.311,11.45331057]
[1772475039639,4.31932089,87.337,87.311,11.45331057]
[1772475040035,11.4485901,87.347,87.311,11.45331057]
[1772475040352,4.31932089,87.346,87.311,11.45331057]
[1772475041148,4.31932089,87.346,87.311,40.08658701]
[1772475041345,4.31932089,87.355,87.314,4.41181971]
[1772475042038,11.44767268,87.354,87.314,4.41181971]
[1772475043041,11.44767268,87.354,87.304,3.69383402]
[1772475043042,8.40386389,87.36,87.316,4.41181971]
[1772475043254,40.34429863,87.369,87.296,4.41181971]
[1772475043255,8.40386389,87.33,87.296,4.41181971]
[1772475043435,0.28432314,87.339,87.296,4.41181971]
[1772475043635,4.31932089,87.336,87.296,4.41181971]
[1772475045842,40.07557107,87.335,87.296,4.41181971]
[1772475046047,4.31932089,87.334,87.296,4.41181971]
[1772475046353,4.31932089,87.319,87.287,4.41181971]
[1772475047048,4.60364403,87.308,87.276,4.41181971]
[1772475047243,8.40386389,87.3,87.276,4.41181971]
[1772475047548,4.60364403,87.308,87.276,4.41181971]
[1772475048636,11.45383531,87.307,87.276,4.41181971]
[1772475049356,40.0884236,87.307,87.276,4.41181971]
[1772475049550,8.40386389,87.3,87.26,4.10010822]
[1772475049755,4.48696831,87.299,87.26,4.10010822]
[1772475049956,8.40386389,87.29,87.26,4.10010822]
[1772475050362,4.48696831,87.299,87.261,4.10010822]
[1772475051564,0.28432314,87.297,87.261,4.10010822]
[1772475052064,4.48696831,87.297,87.261,4.10010822]
[1772475052268,4.20264517,87.321,87.261,4.10010822]
[1772475052563,2.8,113.49,87.23,0.2]
[1772475052564,0.28432314,87.319,87.263,4.10010822]
[1772475052750,0.28432314,87.319,87.265,4.10010822]
[1772475053156,4.20264517,87.325,87.262,40.10909673]
[1772475053157,4.20264517,87.325,87.27,4.10010822]
[1772475053549,11.45160551,87.324,87.272,4.10010822]
[1772475053763,11.45160551,87.324,87.273,0.28432314]
[1772475053972,11.45160551,87.324,87.274,4.10010822]
[1772475055356,4.48696831,87.319,87.276,4.10010822]
[1772475056654,0.28432314,87.327,87.276,4.10010822]
[1772475059171,8.40386389,87.31,87.276,4.10010822]
[1772475059471,0.28432314,87.319,87.276,4.10010822]
[1772475059673,4.20264517,87.316,87.276,4.10010822]
[1772475060765,8.40386389,87.32,87.276,4.10010822]
[1772475061364,4.48696831,87.318,87.276,4.10010822]
[1772475061671,4.20264517,87.318,87.276,4.10010822]
[1772475062455,4.20264517,87.327,87.276,4.10010822]
[1772475062770,4.20264517,87.327,87.246,4.82477569]
[1772475062771,0.14216157,87.339,87.28,7.79394224]
[1772475062975,0.28432314,87.339,87.284,4.10010822]
[1772475063769,4.20264517,87.347,87.292,4.10010822]
[1772475063977,0.28432314,87.349,87.292,4.10010822]
[1772475064475,4.48696831,87.349,87.292,4.10010822]
[1772475067076,4.20264517,87.349,87.294,4.10010822]
[1772475069756,4.20264517,87.377,87.302,5.10909883]
[1772475069956,4.20264517,87.386,87.325,4.10010822]
[1772475070178,4.20264517,87.379,87.325,4.10010822]
[1772475070573,4.20264517,87.389,87.325,4.10010822]
[1772475070768,0.28432314,87.389,87.325,4.10010822]
[1772475070965,8.40386389,87.39,87.325,4.10010822]
[1772475071369,0.28432314,87.389,87.325,4.10010822]
[1772475071573,8.40386389,87.39,87.325,4.10010822]
[1772475071888,0.28432314,87.389,87.329,4.10010822]
[1772475072991,0.28432314,87.389,87.333,4.10010822]
[1772475073564,8.40386389,87.39,87.335,4.10010822]
[1772475074274,8.40386389,87.39,87.339,4.10010822]
[1772475074458,4.48696831,87.399,87.339,4.10010822]
[1772475075477,0.1,87.4,87.345,4.10010822]
[1772475076086,0.1,87.4,87.35,0.14216157]
[1772475076267,0.1,87.4,87.355,4.22688071]
[1772475076988,4.32680009,87.389,87.353,3.69383402]
[1772475077173,4.32680009,87.379,87.345,4.22688071]
[1772475077369,4.32680009,87.369,87.336,4.22688071]
[1772475078064,8.40386389,87.36,87.324,4.40115868]
[1772475078263,4.31092413,87.359,87.324,4.40115868]
[1772475078785,0.14216157,87.368,87.324,4.40115868]
[1772475078965,0.28432314,87.368,87.324,4.40115868]
[1772475079294,4.31092413,87.377,87.324,4.40115868]
[1772475079482,4.31092413,87.396,87.334,4.40115868]
[1772475079782,4.59524727,87.389,87.339,4.40115868]
[1772475080181,4.31092413,87.359,87.326,4.40115868]
[1772475081278,4.31092413,87.399,87.327,1.14512121]
[1772475081492,4.31092413,87.39,87.331,4.40115868]
[1772475082083,4.31092413,87.387,87.331,4.40115868]
[1772475082288,11.44348064,87.386,87.336,4.40115868]
[1772475083087,40.05218226,87.386,87.336,4.40115868]
[1772475083478,4.31092413,87.359,87.331,11.4506035]
[1772475083789,4.31092413,87.359,87.292,8.7223615]
[1772475083790,4.31092413,87.359,87.321,4.40115868]
[1772475083967,8.3841145,87.36,87.321,4.40115868]
[1772475083968,4.31092413,87.357,87.321,4.40115868]
[1772475084168,4.31092413,87.329,87.289,4.40115868]
[1772475084488,4.31092413,87.329,87.289,11.45619722]
[1772475084489,8.3841145,87.32,87.289,11.45619722]
[1772475084887,4.31092413,87.329,87.289,44.49784897]
[1772475085079,4.31092413,87.329,87.29,4.40115868]
[1772475085276,40.06960662,87.348,87.29,4.40115868]
[1772475085277,0.28432314,87.339,87.29,4.40115868]
[1772475085475,0.28432314,87.339,87.19,0.2]
[1772475085476,4.31092413,87.348,87.294,4.40115868]
[1772475085683,0.28432314,87.357,87.294,4.40115868]
[1772475085881,4.31092413,87.358,87.294,4.40115868]
[1772475086074,8.3841145,87.35,87.294,4.40115868]
[1772475086789,4.31092413,87.356,87.294,4.40115868]
[1772475086984,4.31092413,87.347,87.294,4.40115868]
[1772475087689,4.31092413,87.357,87.294,4.40115868]
[1772475087999,8.3841145,87.37,87.313,0.28432314]
[1772475088170,3.69383402,87.415,87.319,4.40115868]
[1772475088171,11.44570728,87.369,87.319,4.40115868]
[1772475088374,11.44334969,87.387,87.324,4.40115868]
[1772475088683,11.44334969,87.387,87.329,4.40115868]
[1772475089002,4.31092413,87.384,87.337,4.40115868]
[1772475089192,8.3841145,87.36,87.32,4.40115868]
[1772475089377,8.3841145,87.36,87.323,4.40115868]
[1772475090082,4.31092413,87.359,87.323,4.40115868]
[1772475090285,11.44714851,87.358,87.324,11.45160551]
[1772475091577,11.44714851,87.358,87.325,4.40115868]
[1772475091896,4.31092413,87.359,87.325,4.40115868]
[1772475092404,4.31092413,87.359,87.327,4.40115868]
[1772475092780,11.44622406,87.366,87.327,4.40115868]
[1772475092978,19.82974612,87.37,87.327,4.40115868]
[1772475093194,0.28432314,87.389,87.332,4.40115868]
[1772475093396,4.31092413,87.379,87.332,4.40115868]
[1772475093898,4.31092413,87.379,87.335,3.69383402]
[1772475094201,4.31092413,87.379,87.337,4.40115868]
[1772475094394,11.44334969,87.387,87.342,4.40115868]
[1772475094899,11.44279878,87.392,87.347,4.40115868]
[1772475095286,4.31092413,87.369,87.346,3.69383402]
[1772475095499,4.31092413,87.359,87.321,8.0949927]
[1772475095697,4.31092413,87.359,87.321,4.40115868]
[1772475097180,11.44714851,87.358,87.322,11.45186779]
[1772475097404,8.3841145,87.37,87.326,4.40115868]
[1772475097604,8.3841145,87.36,87.325,3.69383402]
[1772475097783,4.31092413,87.357,87.322,11.45186779]
[1772475098402,4.31092413,87.357,87.323,4.40115868]
[1772475099502,11.44741059,87.356,87.324,15.85276419]
[1772475100304,11.44741059,87.356,87.325,4.40115868]
[1772475100500,5.98281977,87.356,87.327,4.40115868]
[1772475100703,28.61328572,87.372,87.326,11.45134324]
[1772475100704,1e-08,87.41,87.332,4.40115868]
[1772475101009,45.72115228,87.487,87.376,0.28432314]
[1772475101205,11.43523653,87.449,87.395,4.40115868]
[1772475101588,0.1,87.45,87.395,4.40115868]
[1772475102296,0.1,87.45,87.4,4.68548182]
[1772475102804,0.1,87.45,87.405,4.40115868]
[1772475103807,0.1,87.47,87.41,4.68548182]
[1772475104389,0.1,87.47,87.41,4.40115868]
[1772475104796,0.38432314,87.47,87.415,4.40115868]
[1772475105702,0.1,87.47,87.415,4.40115868]
[1772475107212,0.1,87.47,87.42,4.40115868]
[1772475107600,8.3841145,87.46,87.42,4.40115868]
[1772475107800,0.23731307,87.446,87.396,4.38014491]
[1772475108109,0.23731307,87.436,87.396,4.38014491]
[1772475108498,8.3841145,87.43,87.396,4.38014491]
[1772475108902,8.3841145,87.41,87.369,4.38014491]
[1772475109099,8.3841145,87.4,87.369,4.38014491]
[1772475109296,19.82576672,87.4,87.369,4.38014491]
[1772475109510,8.3841145,87.38,87.351,11.44803914]
[1772475109712,8.3841145,87.39,87.352,4.38014491]
[1772475110496,0.28432314,87.399,87.352,4.38014491]
[1772475111692,8.3841145,87.38,87.328,4.38014491]
[1772475111891,8.3841145,87.37,87.33,4.38014491]
[1772475112207,8.3841145,87.35,87.31,4.38014491]
[1772475112399,8.3841145,87.35,87.311,4.38014491]
[1772475113200,0.23731307,87.359,87.311,4.38014491]
[1772475113417,8.3841145,87.35,87.311,4.38014491]
[1772475113612,8.3841145,87.34,87.311,4.38014491]
[1772475114416,8.3841145,87.34,87.312,11.4531794]
[1772475115199,11.4475818,87.355,87.313,4.38014491]
[1772475115408,8.3841145,87.35,87.313,4.38014491]
[1772475115898,8.3841145,87.34,87.304,4.38014491]
[1772475116117,8.3841145,87.33,87.282,4.38014491]
[1772475116323,8.3841145,87.32,87.282,15.83726092]
[1772475117310,8.3841145,87.32,87.283,4.38014491]
[1772475117910,11.45226124,87.319,87.284,11.45685348]
[1772475118625,11.45226124,87.319,87.284,15.83699839]
[1772475119119,11.45226124,87.319,87.274,4.38014491]
[1772475119120,8.3841145,87.31,87.274,4.38014491]
[1772475119320,0.28432314,87.318,87.274,3.69383402]
[1772475119521,0.28432314,87.318,87.277,4.38014491]
[1772475119725,11.45155032,87.325,87.279,4.38014491]
[1772475119929,11.7343552,87.336,87.281,4.38014491]
[1772475120225,11.45003206,87.336,87.281,4.38014491]
[1772475120413,11.45003206,87.336,87.284,4.38014491]
[1772475120725,11.44845903,87.348,87.284,4.38014491]
[1772475120924,8.3841145,87.35,87.292,0.28432314]
[1772475121129,0.23731307,87.36,87.305,4.38014491]
[1772475121130,19.83105149,87.36,87.305,4.38014491]
[1772475121425,8.3841145,87.37,87.308,0.28432314]
[1772475121615,11.44342168,87.387,87.32,4.66446805]
[1772475121815,19.82576209,87.4,87.334,4.38014491]
[1772475122017,19.82576209,87.4,87.339,4.38014491]
[1772475122210,8.3841145,87.39,87.339,4.38014491]
[1772475122416,8.3841145,87.38,87.339,4.38014491]
[1772475122830,8.3841145,87.37,87.339,4.38014491]
[1772475123013,0.28432314,87.379,87.339,4.38014491]
[1772475123222,8.3841145,87.38,87.339,4.38014491]
[1772475124020,102.96031044,87.413,87.321,11.45190395]
[1772475124021,0.23731307,87.359,87.321,11.45190395]
[1772475124232,0.23731307,87.359,87.316,8.07397893]
[1772475124233,8.3841145,87.35,87.316,4.38014491]
[1772475124715,8.3841145,87.35,87.282,1.1457116]
[1772475124716,8.3841145,87.33,87.283,4.38014491]
[1772475124920,8.3841145,87.33,87.287,4.38014491]
[1772475126545,0.28432314,87.339,87.292,4.38014491]
[1772475126546,11.45038661,87.334,87.292,4.38014491]
[1772475127219,8.3841145,87.33,87.292,4.38014491]
[1772475127839,11.45038661,87.334,87.292,4.38014491]
[1772475128142,11.44976985,87.338,87.292,4.38014491]
[1772475128644,11.44923483,87.343,87.297,4.38014491]
[1772475129644,0.28432314,87.348,87.299,4.38014491]
[1772475130652,11.44774434,87.354,87.302,4.38014491]
[1772475130817,11.44774434,87.354,87.304,4.38014491]
[1772475131018,8.3841145,87.34,87.304,4.38014491]
[1772475131517,0.28432314,87.339,87.304,4.38014491]
[1772475131735,8.62142757,87.32,87.279,4.38014491]
[1772475132252,8.3841145,87.32,87.279,4.38014491]
[1772475132616,0.28432314,87.319,87.279,4.38014491]
[1772475133845,0.23731307,87.322,87.239,4.38014491]
[1772475133846,0.23731307,87.289,87.239,4.38014491]
[1772475134158,8.3841145,87.27,87.232,11.46356017]
[1772475134564,8.3841145,87.25,87.217,4.38014491]
[1772475134844,8.3841145,87.26,87.219,4.38014491]
[1772475135021,0.28432314,87.259,87.219,4.38014491]
[1772475135222,8.3841145,87.25,87.219,4.38014491]
[1772475135418,8.3841145,87.27,87.219,4.38014491]
[1772475135635,8.3841145,87.26,87.219,4.38014491]
[1772475135843,11.46013591,87.259,87.221,4.38014491]
[1772475136239,8.3841145,87.25,87.221,4.38014491]
[1772475138061,8.3841145,87.26,87.223,4.38014491]
[1772475138884,11.45895402,87.268,87.223,4.38014491]
[1772475139049,11.45895402,87.268,87.226,4.38014491]
[1772475139546,8.3841145,87.26,87.226,4.38014491]
[1772475139765,11.45895402,87.268,87.226,4.38014491]
[1772475140458,11.45895402,87.268,87.225,3.69383402]
[1772475140459,0.28432314,87.277,87.228,4.38014491]
[1772475140668,8.3841145,87.27,87.228,4.38014491]
[1772475140864,8.3841145,87.25,87.206,28.66771617]
[1772475141130,28.64416167,87.278,87.2,1.14678899]
[1772475141131,8.3841145,87.23,87.2,4.38014491]
[1772475141262,8.3841145,87.22,87.19,4.58014491]
[1772475141578,8.3841145,87.22,87.194,3.69383402]
[1772475141946,8.3841145,87.21,87.19,0.2]
[1772475142169,8.3841145,87.2,87.176,11.47102402]
[1772475142390,3.69383402,87.257,87.153,15.85410038]
[1772475142391,11.46933672,87.189,87.153,15.85410038]
[1772475142687,8.3841145,87.17,87.141,4.38014491]
[1772475142894,8.3841145,87.17,87.11,1.34797382]
[1772475142895,8.3841145,87.15,87.126,11.4775874]
[1772475143048,8.3841145,87.15,87.119,4.38014491]
[1772475143356,8.3841145,87.15,87.116,11.47883441]
[1772475143570,0.23731307,87.148,87.11,0.2]
[1772475143758,0.28432314,87.145,87.11,0.2]
[1772475143957,8.3841145,87.13,87.11,0.2]
[1772475144685,40.16340769,87.144,87.11,0.2]
[1772475145059,8.43334392,87.13,87.11,0.2]
[1772475145256,8.3841145,87.145,87.112,4.38014491]
[1772475145456,4.91432983,87.145,87.113,4.38014491]
[1772475145661,45.86644181,87.21,87.117,4.38014491]
[1772475145662,8.43334392,87.17,87.117,4.38014491]
[1772475145971,8.43334392,87.18,87.117,4.38014491]
[1772475146171,8.43334392,87.17,87.122,4.38014491]
[1772475146564,11.47196824,87.169,87.127,4.38014491]
[1772475147663,8.43334392,87.17,87.127,4.38014491]
[1772475148087,19.90527698,87.17,87.127,4.38014491]
[1772475148465,19.90527698,87.17,87.116,0.28432314]
[1772475148466,8.43334392,87.18,87.129,4.38014491]
[1772475148671,8.43334392,87.18,87.128,40.17078321]
[1772475148672,11.46973137,87.186,87.132,4.38014491]
[1772475148985,10.37157597,87.187,87.138,4.38014491]
[1772475149286,8.43334392,87.18,87.148,4.38014491]
[1772475149690,8.43334392,87.18,87.136,4.38014491]